Cogmind - Beta 14 @@@ ROGUE MODE // 2024.10.17 @ 19:50:48 Player: Zane Result: Destroyed by SA-N07(R) with Subdweller Machine Gun Performance ------------- Evolutions (0) 0 Regions Visited (3) 600 Robots Destroyed (30) 150 Value Destroyed (745) 745 Prototype IDs (0) 0 Alien Tech Used (0) 0 Bonus (0) 0 TOTAL SCORE: 1495 Bonus ------- None Cogmind --------- Core Integrity 0/250 Matter 249/300 Energy 96/100 System Corruption 0% Temperature Cool (2) Movement Treading (240) Ox1 Location -10/Subcaves Parts ------- > --- POWER (1) -------- (None) > --- PROPULSION (2) --- Light Treads Light Treads > --- UTILITY (2) ------ High-capacity Storage Unit Improved Terrain Scanner > --- WEAPON (2) ------- Battle Cannon Rocket Launcher > --- INVENTORY (20) --- Ion Engine Ion Engine Light Ion Engine Subdweller Power Source Large Storage Unit Subdweller Optics Subdweller Optics Signal Interpreter Targeting Computer Propulsion Shielding Weapon Shielding Light Armor Plating Improved Light Armor Plating Makeshift Light Armor Plating Bomb Drone Bay Beam Cannon Subdweller Machine Gun Battle Cannon Subdweller Shrapnel Launcher Peak State ------------ > --- POWER ------------ (None) > --- PROPULSION ------- Light Treads Light Treads > --- UTILITY ---------- High-capacity Storage Unit Improved Light Armor Plating > --- WEAPON ----------- Battle Cannon Rocket Launcher > --- INVENTORY -------- Ion Engine Ion Engine Ion Engine Light Ion Engine Large Storage Unit Subdweller Optics Signal Interpreter Improved Terrain Scanner Targeting Computer Propulsion Shielding Weapon Shielding Light Armor Plating Makeshift Light Armor Plating Bomb Drone Bay Beam Cannon Light Assault Rifle Light Assault Rifle Subdweller Machine Gun Subdweller Shrapnel Launcher [Rating: 14] Favorites ----------- Power Light Ion Engine Engine Light Ion Engine Propulsion Light Treads Treads Light Treads Leg Aluminum Leg Utility High-capacity Storage Unit Device Improved Terrain Scanner Storage High-capacity Storage Unit Protection Improved Light Armor Plating Weapon Beam Cannon Energy Gun EM Pulse Gun Energy Cannon Beam Cannon Ballistic Gun Assault Rifle Ballistic Cannon Battle Cannon Launcher Grenade Launcher Build | -11 -10 -10 -10 ------- Run | Yrd Mat Min Sub Slots Evolved . | . . . . Power . | . . . . Propulsion . | . . . . Utility . | . . . . Weapon . | . . . . Parts Attached 45 | 8 11 13 13 Power 3 | 1 2 . . Engine 3 | 1 2 . . Core . | . . . . Reactor . | . . . . Propulsion 7 | 2 3 . 2 Treads 5 | . 3 . 2 Leg 2 | 2 . . . Wheel . | . . . . Hover . | . . . . Flight . | . . . . Utility 17 | 3 3 2 9 Device 10 | 2 1 2 5 Storage 3 | 1 2 . . Processor . | . . . . Hackware . | . . . . Protection 4 | . . . 4 Artifact . | . . . . Weapon 18 | 2 3 11 2 Energy Gun 4 | 1 2 1 . Energy Cannon 5 | . 1 4 . Ballistic Gun 2 | 1 . 1 . Ballistic Cannon 1 | . . . 1 Launcher 6 | . . 5 1 Special Weapon . | . . . . Impact Weapon . | . . . . Slashing Weapon . | . . . . Piercing Weapon . | . . . . Special Melee Weapon . | . . . . Unidentified Prototypes . | . . . . Parts Lost 9 | . 4 . 5 Power 1 | . . . 1 Propulsion 3 | . 1 . 2 Utility 2 | . 1 . 1 Weapon 3 | . 2 . 1 Highest Loss Streak 2 | . 2 . 2 To Critical Strikes . | . . . . Average Slot Usage (%) 97 | . 96 99 95 Engine 12 | . 14 14 9 Treads 27 | . 25 28 28 Device 12 | . 11 14 11 Storage 14 | . 14 14 14 Energy Gun 5 | . 14 4 . Energy Cannon 10 | . 1 17 9 Ballistic Gun 2 | . 11 . . Ballistic Cannon 1 | . . . 4 Launcher 7 | . . 5 13 Peak Build Rating 14 | 9 10 12 14 Average Rating 10 | 5 8 11 12 On Entrance 7 | . 7 10 12 Naked Turns . | . . . . Heaviest Build 53 | 13 50 50 53 Greatest Support 40 | 20 40 40 40 Greatest Overweight (x) 2 | 2 1 1 1 Average Overweight (x) . | . . 1 1 Largest Inventory Capacity 20 | 8 20 20 20 Average Capacity 19 | 7 18 20 20 Most Carried 20 | 5 14 20 20 Average Carried 16 | 2 11 18 18 Final Capacity 20 | 8 20 20 20 Final Carried 20 | 5 14 20 20 Class Distribution -------------------- 100% | Mutant Dominant Class ---------------- Mutant | -10/Materials Mutant | -10/Mines Mutant | -10/Subcaves Resources | -11 -10 -10 -10 ----------- Run | Yrd Mat Min Sub Matter Collected 850 | 234 260 180 176 Remotely . | . . . . Salvage Created 725 | 30 364 114 217 Parts 54 | 4 27 12 11 Haulers Intercepted 1 | . 1 . . Recyclers Shooed . | . . . . Parts Field Recycled . | . . . . Retrieved Matter . | . . . . Parts Self-Destructed 4 | . . . 4 Prevented . | . . . . Kills | -11 -10 -10 -10 ------- Run | Yrd Mat Min Sub Combat Hostiles Destroyed 24 | . 8 9 7 Melee 1 | . . 1 . Guns 9 | . 7 2 . Cannons 4 | . . 3 1 AOE 10 | . 1 3 6 Classes Destroyed 9 | 1 5 2 1 Worker 1 | . 1 . . Tunneler 4 | 1 2 1 . Hauler 1 | . 1 . . Watcher 1 | . 1 . . Swarmer 8 | . 3 5 . Grunt 9 | . 5 2 2 Demolisher 1 | . . 1 . Subdweller 5 | . . . 5 Assembled 1 | . . 1 . Best Kill Streak 4 | 1 3 4 2 Combat Bots Only 3 | . 3 3 2 Max Kills in Single Turn 2 | 1 1 2 2 Gunslinging . | . . . . Exploded 2 | . 1 1 2 Melee 1 | . . 1 . Uniques/NPCs Destroyed . | . . . . Combat | -11 -10 -10 -10 -------- Run | Yrd Mat Min Sub Hostile Shots Fired 141 | . 67 53 21 Missed 42 | . 24 15 3 Damage Taken 1566 | . 659 446 461 Core 272 | . 88 123 61 Absorbed by Shields . | . . . . Core Remaining (%) 100 | 100 . . . Volleys Fired 84 | 2 49 25 8 Largest 2 | 2 2 2 2 Hottest 100 | 60 100 100 93 Shots Fired 140 | 4 75 45 16 Gun 94 | 4 74 16 . Cannon 29 | . 1 20 8 Launcher 17 | . . 9 8 Special . | . . . . Kinetic 43 | 2 41 . . Thermal 46 | . 2 36 8 Explosive 17 | . . 9 8 Electromagnetic 34 | 2 32 . . Robot Hit Streak 6 | 1 6 5 6 Robot Miss Streak 3 | 2 3 2 2 Penetration Max . | . . . . Secondary Targets 1 | . 1 . . Max Gunslinging Chain 1 | . 1 . . Shots Hit Robots 86 | 2 49 23 12 Core Hits 45 | 1 22 12 10 Critical Kills . | . . . . Critical Parts Destroyed . | . . . . Critical Strikes . | . . . . Melee Attacks . | . . . . Impact . | . . . . Slashing . | . . . . Piercing . | . . . . Sneak Attacks . | . . . . Combat Hostiles . | . . . . Follow-up Attacks . | . . . . Damage Inflicted 1851 | 28 755 571 497 Guns 777 | 28 628 121 . Cannons 278 | . 17 157 104 Explosions 761 | . 92 276 393 Melee . | . . . . Ramming 35 | . 18 17 . Kinetic 383 | 13 370 . . Thermal 516 | . 109 303 104 Explosive 644 | . . 251 393 Electromagnetic 273 | 15 258 . . Impact . | . . . . Slashing . | . . . . Piercing . | . . . . Highest Corruption . | . . . . Average Corruption . | . . . . Corruption Purged . | . . . . Corruption Blocked . | . . . . Overload Shots . | . . . . Overflow Damage 153 | . 102 51 . Projectiles 25 | . . 25 . Explosions 128 | . 102 26 . Melee . | . . . . Knockbacks 1 | . 1 . . Impact 1 | . 1 . . Kinetic . | . . . . Secondary . | . . . . Self-Inflicted Damage 183 | . 150 20 13 Shots 5 | . 2 2 1 Rammed 5 | . 1 4 . Targets Rammed 8 | . 3 5 . Kicked . | . . . . Crushed 3 | . 2 1 . Highest Temperature 510 | . 63 510 19 Average Temperature 99 | . 29 157 11 Received Heat Transfer 462 | . 258 99 105 Effects 6 | . . 6 . Shutdowns 1 | . . 1 . Energy Bleed 1 | . . 1 . Interference 3 | . . 3 . Damage (minor) 1 | . . 1 . Siege Activations . | . . . . Robots Corrupted . | . . . . Combat Hostiles . | . . . . Parts Fried . | . . . . Impact Corruptions . | . . . . Robots Melted . | . . . . Combat Hostiles . | . . . . Parts Melted . | . . . . Heat Transferred 967 | . 87 658 222 Parts Sabotaged . | . . . . Parts Stolen . | . . . . Parts Stripped . | . . . . Power Chain Reactions 1 | . 1 . . Alert | -11 -10 -10 -10 ------- Run | Yrd Mat Min Sub Peak Influence 192 | 5 192 116 . Initial 48 | . 3 48 . Average 58 | 1 70 52 . Maximum Alert Level . | . . . . Low Security (%) 100 | 100 100 100 . Level 1 . | . . . . Level 2 . | . . . . Level 3 . | . . . . Level 4 . | . . . . Level 5 . | . . . . High Security . | . . . . Max Security . | . . . . Squads Dispatched 1 | . 1 . . Investigation 1 | . 1 . . Extermination . | . . . . Reinforcement . | . . . . Assault . | . . . . Garrison . | . . . . Intercept . | . . . . Searches Triggered . | . . . . Construction Impeded . | . . . . Haulers Reinforced . | . . . . Active Scanning Responses . | . . . . Cargo Convoy Interrupts . | . . . . Stealth | -11 -10 -10 -10 --------- Run | Yrd Mat Min Sub Distress Signals 2 | . 2 . . Communications Jammed . | . . . . Distress Signals . | . . . . Times Spotted 37 | . 19 10 8 Peak Tracking Total 4 | . 4 3 2 Tactical Retreats 4 | . 4 . . Traps | -11 -10 -10 -10 ------- Run | Yrd Mat Min Sub Traps Triggered 2 | . 1 . 1 Indirectly . | . . . . Trap Hack Attempts . | . . . . Triggered . | . . . . Disarmed . | . . . . Reprogrammed . | . . . . Reused . | . . . . Traps Extracted . | . . . . Installed . | . . . . Triggered . | . . . . Machines | -11 -10 -10 -10 ---------- Run | Yrd Mat Min Sub Machines Disabled 2 | . 1 1 . Max in Single Turn 1 | . 1 1 . Machines Repaired . | . . . . Machines Dismantled . | . . . . Machines Sabotaged . | . . . . Overloaded Fab Kills . | . . . . Hacking | -11 -10 -10 -10 --------- Run | Yrd Mat Min Sub Machines Accessed 6 | . 5 1 . Terminals 5 | . 5 . . Fabricators . | . . . . Repair Stations . | . . . . Recycling Units . | . . . . Scanalyzers . | . . . . Garrison Access . | . . . . Total Hacks 17 | . 16 1 . Successful 6 | . 5 1 . Failed 11 | . 11 . . Catastrophic . | . . . . Database Lockouts . | . . . . Manual 9 | . 9 . . Terminals 16 | . 16 . . Fabricators . | . . . . Repair Stations . | . . . . Recycling Units . | . . . . Scanalyzers . | . . . . Garrison Access . | . . . . Terminal Hacks 6 | . 5 1 . Open Door 1 | . . 1 . Locate Traps 1 | . 1 . . Recall Investigation 1 | . 1 . . Zone Layout 3 | . 3 . . Fabricator Hacks . | . . . . Repair Station Hacks . | . . . . Recycling Unit Hacks . | . . . . Scanalyzer . | . . . . Garrison Access Hacks . | . . . . Unauthorized Hacks . | . . . . Terminals . | . . . . Fabricators . | . . . . Repair Stations . | . . . . Recycling Units . | . . . . Scanalyzers . | . . . . Garrison Access . | . . . . Data Cores Recovered . | . . . . Used . | . . . . Hacking Detections 5 | . 5 . . Full Trace Events . | . . . . Feedback Events . | . . . . Feedback Blocked . | . . . . Robot Schematics Acquired . | . . . . Robots Built . | . . . . Authchips . | . . . . Time . | . . . . Total Robot Build Rating . | . . . . Part Schematics Acquired . | . . . . Parts Built . | . . . . Authchips . | . . . . Time . | . . . . Total Part Build Rating . | . . . . Parts Repaired . | . . . . Time . | . . . . Parts Recycled . | . . . . Recycled Matter . | . . . . Retrieved Matter . | . . . . Retrieved Components . | . . . . Parts Scanalyzed . | . . . . Part Schematics Acquired . | . . . . Parts Damaged . | . . . . Bothacking | -11 -10 -10 -10 ------------ Run | Yrd Mat Min Sub Used RIF Installer . | . . . . Robots Hacked . | . . . . Non-combat . | . . . . Combat . | . . . . Robot Hacks Applied . | . . . . Relay Couplers Released . | . . . . Fabnet Peak Effective % . | . . . . Robots Rewired . | . . . . Allies Hacked . | . . . . Hacks Repelled . | . . . . Allies | -11 -10 -10 -10 -------- Run | Yrd Mat Min Sub Total Allies . | . . . . Largest Group . | . . . . Highest-Rated Group . | . . . . Highest-Rated Ally . | . . . . Total Orders . | . . . . Ally Attacks . | . . . . Total Damage . | . . . . Kills . | . . . . Allies Corrupted . | . . . . Allies Melted 1 | . . . 1 Intel | -11 -10 -10 -10 ------- Run | Yrd Mat Min Sub Robot Analysis Total . | . . . . Derelict Logs Recovered 3 | . . 2 1 Drone Launches . | . . . . Drone Recoveries . | . . . . Exploration | -11 -10 -10 -10 ------------- Run | Yrd Mat Min Sub Turns Passed 4770 | 75 1171 1812 1712 Spaces Moved 1765 | 43 400 631 691 Core 6 | 6 . . . Treads 1684 | . 362 631 691 Legs 75 | 37 38 . . Wheels . | . . . . Hover . | . . . . Flight . | . . . . Fastest Speed 50 | 50 120 240 240 Average Speed 232 | 121 217 240 240 Slowest Speed 240 | 190 240 240 240 Overloaded Moves . | . . . . Propulsion Burnouts . | . . . . Robots Hopped . | . . . . Cave-ins Triggered . | . . . . Exploration Rate (%) 58 | 4 80 99 50 Regions Visited 3 Branch Regions 2 Pre-discovered Areas 2 | . . 2 . Known Exits Taken . | . . . . Unknown Exits Taken 3 | 1 1 1 . Scrap Searched 2 | . . 2 . Spaces Dug . | . . . . Terrain Destroyed 145 | . 45 51 49 Melee . | . . . . Projectile . | . . . . AOE 145 | . 45 51 49 Terrain Rammed . | . . . . Walls Destroyed . | . . . . Machines Disabled . | . . . . Actions | -11 -10 -10 -10 --------- Run | Yrd Mat Min Sub Total 2278 | 57 621 874 726 Wait 336 | . 147 186 3 Move 1762 | 42 399 630 691 Hop . | . . . . Pick Up 30 | 5 9 9 7 Fast Attach 13 | 7 3 2 1 Attach 7 | . 3 . 4 Detach . | . . . . Swap 25 | 1 5 11 8 Drop 13 | . 3 6 4 Fire 84 | 2 49 25 8 Melee . | . . . . Ram . | . . . . Kick . | . . . . Crush 8 | . 3 5 . Escape Stasis . | . . . . Rewire . | . . . . Trap . | . . . . Miscellaneous . | . . . . Route ------- -11/Scrapyard -10/Materials (discovered 3 exits: *Mat / *Min x2) -10/Mines (discovered 3 exits: *Mat x2 / [*Sub]) -10/Subcaves History --------- Turn | Location | Event 20 | -11/Scrapyard | Discovered new exit (range 15) 76 | -11/Scrapyard | Entered Materials 308 | -10/Materials | Build established: Mutant 427 | -10/Materials | Discovered new exit (range 15) 897 | -10/Materials | Discovered new exit (range 11) 1136 | -10/Materials | Discovered new exit (range 12) 1247 | -10/Materials | Entered Mines 1303 | -10/Mines | Discovered new exit (range 8) 1310 | -10/Mines | Received a Rocket Launcher from a helpful Derelict 1408 | -10/Mines | Found the Drone Emporium 1419 | -10/Mines | Found Prototype Device 1471 | -10/Mines | Assembled infested the area 1565 | -10/Mines | Identified exit to Materials 1736 | -10/Mines | Core integrity fell below 50% 2306 | -10/Mines | Learned location of Storage (-9) 2456 | -10/Mines | Core integrity fell below 20% 3045 | -10/Mines | Discovered new exit (range 7) 3059 | -10/Mines | Entered Subcaves 4476 | -10/Subcaves | Learned 2 Materials zone layouts 4771 | -10/Subcaves | Destroyed by SA-N07(R) with Subdweller Machine Gun Last Messages --------------- 04230_ Subatomizers dissect the Sub. Power Source. 04232_ The unstable cave ceiling collapses. 04239_ Acquired Sub. Machine Gun. 04242_ Dropped Beam Cannon. 04243_ Subatomizers dissect the Sub. Power Source. 04243_ Acquired Battle Cannon. 04244_ Dropped Lgt. Assault Rifle. 04248_ Acquired Battle Cannon. 04249_ Acquired 3 matter. 04253_ Acquired Sub. Power Source. 04254_ Acquired 51 matter. 04258_ Subatomizers dissect the Disposable Heat Sink. 04262_ Dropped Ion Engine. 04262_ Acquired Sub. Optics. 04476_ Acquired derelict log, extracted data. Data stored: Materials zone layouts (x2). 04560_ Acquired 14 matter. Map ----- +----------------------------------------------------+ | | | | | | | ????????????????????????????????????????????????? | | ????????????????????????????????????????????????? | | ????????????????????????????????????????????????? | | ????????????????????????????????????????????????? | | ????????????????????????????????????????????????? | | ????????????????????????????????????????????????? | | ????????????????????????????????????????????????? | | ????????????????????????????????????????????????? | | ????????????????????????????????????????????????? | | ????????????????????????????????????????????????? | | ???????????????????????????????#???????????????#? | | ??????????????????#?????????????????????????????? | | ???????????????????????#?????????????????#??????# | | ????????????????????????????????????????????????? | | ????????????????????????????????????????????####? | | ???????????????????????????????????????????## ## | | ?????????????????????????????????????????### # | | ???????????????????????????????#????#??### # | | ??????????????#??????????#?????????###### | | ???????????????####??#######???#???# | | ???????????#??## """#"# #???????# | | ??????????????# " #######?# | | ???????????????# ""[ @ ## #?# | | ???????????????# ### ## #### | | ???????????????? ??#" R#?## # # #?## | | ???????????????????#" #??###### ##?# # | | ???????????????? ? ""????????# ### ### # | | ????????????????? ????????## # #?# # | | ????????????????# ??"??????# ## # | | ????????????????###??????????## #### | | ???????????????#??????????????## ## # ##?# # | | ??????????????????#?? ?? ??????# ##### ##?## # | | ???????????????????????????????###???## ##?### | | ??????????????????????????????????????### #??#? | | ????????????????#????????? ???#????#????## ###?? | | ?????????????????????????????????#???#??## #??? | | ???????????????????????????????????????## ###?? | | ?????????????????????????????????????### ##??? | | ??????????????????????????????????????# #???? | | ?????????????????????????? ??????????#### ###?? | | ????????????????????????????????????????## #### | | ?????????????????????????????????????????# | | ???????????????????????????????????? ????# | | ?????????????????????????????#???????????# ## | | ?????????????????????????????????????????# ###? | | ??????????????????????????????????????? ###### | | ???????????????????????????????????? ??## | +----------------------------------------------------+ Best States ------------- Heat Dissipation 25 Energy Generation 10 Energy Capacity 250 Matter Stores 300 Matter Capacity 300 Sight Range 16 Terrain Scan Range 16 Terrain Scan Density 10 Armor Coverage 150 Evasion (%) 50 Recoil Reduction 2 Item Schematics ----------------- None Robot Schematics ------------------ None Fabricated ------------ Nothing Alien Tech Used ----------------- None Achievements -------------- I Survived The Infestation Challenges ------------ None Game ------ Seed ScanChainSuit Manual? 0 Play Time 00:25:40 Cumulative 22.7 hours Start 2024.10.17 @ 19:09:13 End 2024.10.17 @ 19:50:48 Sessions 1 Manual Loads 0 Difficulty Rogue Special Mode None Game No. 33 Rogue 33 Adventurer 0 Explorer 0 Win Type - Total 0 Types 0/0/0/0/0/0/0/0/0 Lore% 25 Gallery% 28 Achievement% 23 Wizard Run 0 Options --------- Layout 1 ASCII 0 Keyboard 0 Movement Mouse Keybinds 0 Fullscreen 1 Font 24/Smallcaps Map View 50x35 Zoom Use 0% Tactical HUD 1 Map Filters NONE Filters NONE Steam 1 RUN: 184d2ed8-2dbe-438e-b0f1-d00ee1ca7f34